[Event "Live Chess"]
[Site "Chess.com"]
[Date "2023.05.20"]
[Round "-"]
[White "Alan_Richardson"]
[Black "cedarsmaster"]
[Result "0-1"]
[WhiteElo "1625"]
[BlackElo "1769"]
[TimeControl "300"]
[EndTime "9:59:56 PDT"]
[Termination "cedarsmaster won on time"]

1. d4 {[%clk 0:04:57.7]} 1... e6 {[%clk 0:04:53.9]} 2. Nf3 {[%clk 0:04:54]} 2...
f5 {[%clk 0:04:50.5]} 3. Bf4 {[%clk 0:04:51.5]} 3... Nf6 {[%clk 0:04:48.8]} 4.
e3 {[%clk 0:04:50.2]} 4... Be7 {[%clk 0:04:35.1]} 5. h3 {[%clk 0:04:47]} 5...
O-O {[%clk 0:04:32]} 6. c4 {[%clk 0:04:45.4]} 6... d6 {[%clk 0:04:22.4]} 7. Nc3
{[%clk 0:04:44]} 7... Nc6 {[%clk 0:04:17.6]} 8. Be2 {[%clk 0:04:42.1]} 8... Bd7
{[%clk 0:04:11.1]} 9. O-O {[%clk 0:04:40.5]} 9... Qe8 {[%clk 0:04:03.7]} 10. Rc1
{[%clk 0:04:26.8]} 10... Kh8 {[%clk 0:04:00]} 11. a3 {[%clk 0:04:14.3]} 11...
Nd8 {[%clk 0:03:55.5]} 12. b4 {[%clk 0:04:10.2]} 12... Nf7 {[%clk 0:03:52.4]}
13. c5 {[%clk 0:04:00]} 13... d5 {[%clk 0:03:35.4]} 14. Bxc7 {[%clk 0:03:49.9]}
14... Ne4 {[%clk 0:03:31.6]} 15. Qb3 {[%clk 0:03:29.1]} 15... g5 {[%clk
0:03:27.8]} 16. Ne5 {[%clk 0:03:19.8]} 16... Nd2 {[%clk 0:03:18.5]} 17. Qc2
{[%clk 0:03:10.6]} 17... Nxf1 {[%clk 0:03:15.5]} 18. Bxf1 {[%clk 0:03:08.4]}
18... Nh6 {[%clk 0:03:03]} 19. b5 {[%clk 0:03:02.3]} 19... Bf6 {[%clk 0:02:51]}
20. Bd6 {[%clk 0:02:43.1]} 20... Rg8 {[%clk 0:02:46.6]} 21. a4 {[%clk
0:02:20.5]} 21... Kg7 {[%clk 0:02:42.2]} 22. Ne2 {[%clk 0:02:10.3]} 22... Rc8
{[%clk 0:02:30.5]} 23. c6 {[%clk 0:01:53.8]} 23... bxc6 {[%clk 0:02:20.6]} 24.
bxc6 {[%clk 0:01:51.2]} 24... Bxe5 {[%clk 0:02:14.7]} 25. Bxe5+ {[%clk
0:01:48.2]} 25... Kf7 {[%clk 0:02:10.1]} 26. cxd7 {[%clk 0:01:38]} 26... Qxd7
{[%clk 0:02:06.5]} 27. Qd2 {[%clk 0:01:35.3]} 27... Qxa4 {[%clk 0:01:59.8]} 28.
Rb1 {[%clk 0:01:20.9]} 28... Rb8 {[%clk 0:01:42.9]} 29. Nc3 {[%clk 0:01:07.9]}
29... Qd7 {[%clk 0:01:27.1]} 30. Ra1 {[%clk 0:01:02.9]} 30... Ra8 {[%clk
0:01:21.3]} 31. Nb5 {[%clk 0:00:57.5]} 31... Rgc8 {[%clk 0:01:15.5]} 32. Nd6+
{[%clk 0:00:55.7]} 32... Kg6 {[%clk 0:01:12]} 33. Nxc8 {[%clk 0:00:53.1]} 33...
Qxc8 {[%clk 0:01:08.1]} 34. Rc1 {[%clk 0:00:45.1]} 34... Qe8 {[%clk 0:01:04.9]}
35. Rc7 {[%clk 0:00:32.5]} 35... Nf7 {[%clk 0:01:03]} 36. Qa5 {[%clk 0:00:26.7]}
36... Nxe5 {[%clk 0:00:58.2]} 37. dxe5 {[%clk 0:00:25.5]} 37... Qb8 {[%clk
0:00:55.2]} 38. Qc5 {[%clk 0:00:19]} 38... a5 {[%clk 0:00:47.2]} 39. Qe7 {[%clk
0:00:17.7]} 39... Qg8 {[%clk 0:00:43.2]} 40. Rc6 {[%clk 0:00:14.9]} 40... Re8
{[%clk 0:00:39.4]} 41. Qa7 {[%clk 0:00:12.5]} 41... g4 {[%clk 0:00:31]} 42. hxg4
{[%clk 0:00:09.1]} 42... fxg4 {[%clk 0:00:27.3]} 43. Bd3+ {[%clk 0:00:05.5]}
43... Kg5 {[%clk 0:00:24.6]} 44. Qxa5 {[%clk 0:00:03]} 44... g3 {[%clk
0:00:20.8]} 45. Qb4 {[%clk 0:00:01]} 45... gxf2+ {[%clk 0:00:17.7]} 46. Kf1
{[%clk 0:00:00.1]} 46... Qf7 {[%clk 0:00:12.8]} 0-1

[Event "Live Chess"]
[Site "Chess.com"]
[Date "2023.05.20"]
[Round "-"]
[White "SirEntrails"]
[Black "Daniel_Gliddon_FA"]
[Result "0-1"]
[WhiteElo "537"]
[BlackElo "968"]
[TimeControl "300"]
[EndTime "9:59:58 PDT"]
[Termination "Daniel_Gliddon_FA won by checkmate"]

1. e4 {[%clk 0:04:59.3]} 1... d6 {[%clk 0:04:56.5]} 2. Nf3 {[%clk 0:04:58.4]}
2... Nf6 {[%clk 0:04:54]} 3. Bc4 {[%clk 0:04:53]} 3... g6 {[%clk 0:04:51.8]} 4.
Ng5 {[%clk 0:04:49.9]} 4... e6 {[%clk 0:04:45.2]} 5. Qe2 {[%clk 0:04:37.3]} 5...
Bg7 {[%clk 0:04:41.7]} 6. e5 {[%clk 0:04:35.2]} 6... dxe5 {[%clk 0:04:37.9]} 7.
Qxe5 {[%clk 0:04:27.6]} 7... Nbd7 {[%clk 0:04:28.5]} 8. Qe3 {[%clk 0:04:09.4]}
8... O-O {[%clk 0:04:23.8]} 9. Nxe6 {[%clk 0:03:50.1]} 9... fxe6 {[%clk
0:04:17.8]} 10. Bxe6+ {[%clk 0:03:47.9]} 10... Kh8 {[%clk 0:04:15.5]} 11. Qh3
{[%clk 0:03:37.4]} 11... Re8 {[%clk 0:04:13]} 12. O-O {[%clk 0:03:26.8]} 12...
Nc5 {[%clk 0:04:09.1]} 13. Bxc8 {[%clk 0:03:20.3]} 13... Rxc8 {[%clk 0:04:05.9]}
14. d3 {[%clk 0:03:17.3]} 14... Ne6 {[%clk 0:03:54.6]} 15. Re1 {[%clk 0:03:12]}
15... Ng5 {[%clk 0:03:52.1]} 16. Qg3 {[%clk 0:02:45.9]} 16... Rxe1# {[%clk
0:03:35.8]} 0-1

[Event "Live Chess"]
[Site "Chess.com"]
[Date "2023.05.20"]
[Round "-"]
[White "OSmith06"]
[Black "Hussamalhaidar"]
[Result "1-0"]
[WhiteElo "1723"]
[BlackElo "970"]
[TimeControl "300"]
[EndTime "10:00:03 PDT"]
[Termination "OSmith06 won by checkmate"]

1. e4 {[%clk 0:04:56.8]} 1... Nc6 {[%clk 0:04:55.3]} 2. Nf3 {[%clk 0:04:51.1]}
2... e5 {[%clk 0:04:53.7]} 3. d4 {[%clk 0:04:47.3]} 3... Nf6 {[%clk 0:04:42.8]}
4. d5 {[%clk 0:04:44.8]} 4... Ne7 {[%clk 0:04:39.7]} 5. c4 {[%clk 0:04:40.5]}
5... Ng6 {[%clk 0:04:32.5]} 6. Bd3 {[%clk 0:04:36.6]} 6... Bc5 {[%clk
0:04:30.2]} 7. O-O {[%clk 0:04:27.4]} 7... d6 {[%clk 0:04:28.5]} 8. a3 {[%clk
0:04:23]} 8... a6 {[%clk 0:04:25.9]} 9. b4 {[%clk 0:04:21]} 9... Ba7 {[%clk
0:04:15.6]} 10. Nc3 {[%clk 0:04:19.5]} 10... O-O {[%clk 0:04:05.9]} 11. Be3
{[%clk 0:04:16.5]} 11... Bxe3 {[%clk 0:03:47.3]} 12. fxe3 {[%clk 0:04:16.4]}
12... Ng4 {[%clk 0:03:45.4]} 13. Qe2 {[%clk 0:04:11.5]} 13... Nh4 {[%clk
0:03:28.7]} 14. Nxh4 {[%clk 0:04:08.3]} 14... Qxh4 {[%clk 0:03:26.5]} 15. h3
{[%clk 0:04:05.3]} 15... Nf6 {[%clk 0:03:02.7]} 16. Qf2 {[%clk 0:03:53.8]} 16...
Bxh3 {[%clk 0:02:55.8]} 17. Qxh4 {[%clk 0:03:50.3]} 17... Bxg2 {[%clk
0:02:50.1]} 18. Kxg2 {[%clk 0:03:47.1]} 18... h6 {[%clk 0:02:45.1]} 19. Rxf6
{[%clk 0:03:45.7]} 19... gxf6 {[%clk 0:02:43.3]} 20. Qxh6 {[%clk 0:03:44.9]}
20... f5 {[%clk 0:02:37.4]} 21. Rh1 {[%clk 0:03:44]} 21... f6 {[%clk 0:02:32.6]}
22. Qh7# {[%clk 0:03:42]} 1-0

[Event "Live Chess"]
[Site "Chess.com"]
[Date "2023.05.20"]
[Round "-"]
[White "LodeshChess"]
[Black "KeithArkell"]
[Result "0-1"]
[WhiteElo "894"]
[BlackElo "2610"]
[TimeControl "300"]
[EndTime "10:00:15 PDT"]
[Termination "KeithArkell won by resignation"]

1. e4 {[%clk 0:04:59.6]} 1... c6 {[%clk 0:04:58.3]} 2. Nf3 {[%clk 0:04:58.1]}
2... d5 {[%clk 0:04:57.5]} 3. d3 {[%clk 0:04:57.8]} 3... Bg4 {[%clk 0:04:54.8]}
4. Be2 {[%clk 0:04:48.9]} 4... dxe4 {[%clk 0:04:53.4]} 5. dxe4 {[%clk
0:04:45.8]} 5... Qxd1+ {[%clk 0:04:51.3]} 6. Bxd1 {[%clk 0:04:44.9]} 6... Nd7
{[%clk 0:04:47.7]} 7. h3 {[%clk 0:04:41]} 7... Bxf3 {[%clk 0:04:46.4]} 8. Bxf3
{[%clk 0:04:39.8]} 8... e5 {[%clk 0:04:45.6]} 9. O-O {[%clk 0:04:38.8]} 9...
Ngf6 {[%clk 0:04:44.2]} 10. Nc3 {[%clk 0:04:37.8]} 10... Bb4 {[%clk 0:04:42.7]}
11. Bd2 {[%clk 0:04:34.5]} 11... O-O {[%clk 0:04:41.1]} 12. a4 {[%clk
0:04:33.8]} 12... Nc5 {[%clk 0:04:40]} 13. Rfe1 {[%clk 0:04:23.7]} 13... Rfe8
{[%clk 0:04:38.7]} 14. b3 {[%clk 0:04:06.2]} 14... Rad8 {[%clk 0:04:35.6]} 15.
Re2 {[%clk 0:03:11.9]} 15... Rxd2 {[%clk 0:04:33.8]} 16. Rxd2 {[%clk 0:03:07.6]}
16... Bxc3 {[%clk 0:04:32.7]} 17. Rad1 {[%clk 0:02:49.8]} 17... Bxd2 {[%clk
0:04:31.4]} 18. Rxd2 {[%clk 0:02:49.6]} 18... Ne6 {[%clk 0:04:30]} 19. c3 {[%clk
0:02:44.3]} 19... Rd8 {[%clk 0:04:28.9]} 20. Rxd8+ {[%clk 0:02:37.2]} 20... Nxd8
{[%clk 0:04:28.8]} 21. g4 {[%clk 0:02:35.3]} 21... Ne6 {[%clk 0:04:27.6]} 22.
Kf1 {[%clk 0:02:34.5]} 22... Nc5 {[%clk 0:04:26.7]} 23. b4 {[%clk 0:02:31.8]}
23... Ncxe4 {[%clk 0:04:24.9]} 24. Bxe4 {[%clk 0:02:29.6]} 24... Nxe4 {[%clk
0:04:23.7]} 25. Ke2 {[%clk 0:02:27.2]} 25... Nxc3+ {[%clk 0:04:22.7]} 0-1

[Event "Live Chess"]
[Site "Chess.com"]
[Date "2023.05.20"]
[Round "-"]
[White "Driftboard"]
[Black "Ra2orLeaf"]
[Result "0-1"]
[WhiteElo "684"]
[BlackElo "1148"]
[TimeControl "300"]
[EndTime "10:00:15 PDT"]
[Termination "Ra2orLeaf won by checkmate"]

1. e4 {[%clk 0:04:59.1]} 1... c5 {[%clk 0:04:59.5]} 2. d4 {[%clk 0:04:56]} 2...
cxd4 {[%clk 0:04:58.5]} 3. Qxd4 {[%clk 0:04:55.1]} 3... Nc6 {[%clk 0:04:58.4]}
4. Qc3 {[%clk 0:04:52]} 4... e6 {[%clk 0:04:58]} 5. Nf3 {[%clk 0:04:50.3]} 5...
a5 {[%clk 0:04:57.5]} 6. Bd3 {[%clk 0:04:49.1]} 6... Bb4 {[%clk 0:04:55.9]} 7.
Qxb4 {[%clk 0:04:45.7]} 7... axb4 {[%clk 0:04:55.8]} 8. O-O {[%clk 0:04:44.3]}
8... Nge7 {[%clk 0:04:53.2]} 9. h3 {[%clk 0:04:43.5]} 9... O-O {[%clk
0:04:52.4]} 10. Bg5 {[%clk 0:04:41.2]} 10... h6 {[%clk 0:04:50.4]} 11. Bxe7
{[%clk 0:04:40.1]} 11... Nxe7 {[%clk 0:04:49.4]} 12. c3 {[%clk 0:04:38]} 12...
bxc3 {[%clk 0:04:48.1]} 13. Nxc3 {[%clk 0:04:37.2]} 13... b6 {[%clk 0:04:42.4]}
14. Nb5 {[%clk 0:04:36]} 14... Ba6 {[%clk 0:04:38]} 15. a4 {[%clk 0:04:30.8]}
15... Bxb5 {[%clk 0:04:36.4]} 16. Bxb5 {[%clk 0:04:27.6]} 16... d5 {[%clk
0:04:31.4]} 17. exd5 {[%clk 0:04:26]} 17... Nxd5 {[%clk 0:04:31.3]} 18. Bc6
{[%clk 0:04:23.4]} 18... Rc8 {[%clk 0:04:29.2]} 19. Bxd5 {[%clk 0:04:22.1]}
19... exd5 {[%clk 0:04:28.1]} 20. Rac1 {[%clk 0:04:20.1]} 20... Rxc1 {[%clk
0:04:26.6]} 21. Rxc1 {[%clk 0:04:18.7]} 21... d4 {[%clk 0:04:25.2]} 22. Rd1
{[%clk 0:04:17]} 22... d3 {[%clk 0:04:24.7]} 23. Ne5 {[%clk 0:04:14.6]} 23...
Re8 {[%clk 0:04:23.5]} 24. Nxd3 {[%clk 0:04:11.9]} 24... Re1+ {[%clk 0:04:06.6]}
25. Rxe1 {[%clk 0:04:08.9]} 25... Qxd3 {[%clk 0:04:06.5]} 26. Re8+ {[%clk
0:04:06.5]} 26... Kh7 {[%clk 0:04:05.6]} 27. Kh2 {[%clk 0:04:04.4]} 27... Qd6+
{[%clk 0:03:58.9]} 28. g3 {[%clk 0:04:02.6]} 28... Qd2 {[%clk 0:03:56.1]} 29.
Kg2 {[%clk 0:03:59.4]} 29... Qxb2 {[%clk 0:03:53.4]} 30. h4 {[%clk 0:03:57]}
30... Qc2 {[%clk 0:03:45.1]} 31. Rb8 {[%clk 0:03:54.8]} 31... Qxa4 {[%clk
0:03:42]} 32. Rxb6 {[%clk 0:03:53.3]} 32... Qe4+ {[%clk 0:03:41.9]} 33. Kg1
{[%clk 0:03:49.3]} 33... f6 {[%clk 0:03:41.1]} 34. Rd6 {[%clk 0:03:44.6]} 34...
Kg6 {[%clk 0:03:34.9]} 35. Kh2 {[%clk 0:03:42]} 35... Qe2 {[%clk 0:03:30.7]} 36.
Kg2 {[%clk 0:03:40.1]} 36... Qe4+ {[%clk 0:03:28.3]} 37. Kh3 {[%clk 0:03:38.3]}
37... Kf5 {[%clk 0:03:27]} 38. Rd7 {[%clk 0:03:33.2]} 38... g5 {[%clk
0:03:25.9]} 39. hxg5 {[%clk 0:03:31.2]} 39... hxg5 {[%clk 0:03:25.8]} 40. Rh7
{[%clk 0:03:26.7]} 40... Qh1# {[%clk 0:03:25]} 0-1

[Event "Live Chess"]
[Site "Chess.com"]
[Date "2023.05.20"]
[Round "-"]
[White "FlyingChessKestrel13"]
[Black "jusjoel"]
[Result "1-0"]
[WhiteElo "2127"]
[BlackElo "297"]
[TimeControl "300"]
[EndTime "10:00:24 PDT"]
[Termination "FlyingChessKestrel13 won by checkmate"]

1. e4 {[%clk 0:04:58.6]} 1... e5 {[%clk 0:04:56.3]} 2. d4 {[%clk 0:04:55.2]}
2... d6 {[%clk 0:04:51]} 3. Nf3 {[%clk 0:04:52.5]} 3... Nf6 {[%clk 0:04:46.4]}
4. Nc3 {[%clk 0:04:46.4]} 4... c5 {[%clk 0:04:41.3]} 5. dxe5 {[%clk 0:04:44.2]}
5... dxe5 {[%clk 0:04:35.7]} 6. Qxd8+ {[%clk 0:04:43.3]} 6... Kxd8 {[%clk
0:04:30.9]} 7. Nxe5 {[%clk 0:04:42.8]} 7... Nc6 {[%clk 0:04:23.8]} 8. Nxf7+
{[%clk 0:04:41.5]} 8... Ke7 {[%clk 0:04:18]} 9. Nxh8 {[%clk 0:04:40.6]} 9... Nd4
{[%clk 0:04:11.8]} 10. Bd3 {[%clk 0:04:36.3]} 10... Bg4 {[%clk 0:04:08.2]} 11.
Be3 {[%clk 0:04:33.4]} 11... Rd8 {[%clk 0:03:50.8]} 12. f3 {[%clk 0:04:20.6]}
12... Bd7 {[%clk 0:03:39.1]} 13. Bxd4 {[%clk 0:04:19.4]} 13... cxd4 {[%clk
0:03:35.4]} 14. Ne2 {[%clk 0:04:18.9]} 14... Ba4 {[%clk 0:03:22]} 15. b3 {[%clk
0:04:16.5]} 15... Bc6 {[%clk 0:03:17.4]} 16. Bc4 {[%clk 0:04:14.4]} 16... Ke8
{[%clk 0:03:06.7]} 17. Nf7 {[%clk 0:04:11.6]} 17... Rd7 {[%clk 0:02:59.3]} 18.
Ne5 {[%clk 0:04:10.1]} 18... Re7 {[%clk 0:02:50.5]} 19. Nxc6 {[%clk 0:04:08.9]}
19... bxc6 {[%clk 0:02:48.4]} 20. Nxd4 {[%clk 0:04:07.4]} 20... Nd5 {[%clk
0:02:34.8]} 21. Bxd5 {[%clk 0:04:04.3]} 21... cxd5 {[%clk 0:02:32.6]} 22. O-O-O
{[%clk 0:04:02.1]} 22... Rc7 {[%clk 0:02:22.9]} 23. exd5 {[%clk 0:03:59.3]}
23... Ba3+ {[%clk 0:02:12.6]} 24. Kb1 {[%clk 0:03:58.4]} 24... a5 {[%clk
0:02:04.7]} 25. Nb5 {[%clk 0:03:43.1]} 25... Bd6 {[%clk 0:01:44.8]} 26. Nxd6+
{[%clk 0:03:38.8]} 26... Kd7 {[%clk 0:01:39.6]} 27. Nc4 {[%clk 0:03:37.1]} 27...
Ra7 {[%clk 0:01:24.9]} 28. d6 {[%clk 0:03:35]} 28... a4 {[%clk 0:01:21.1]} 29.
Rhe1 {[%clk 0:03:33.4]} 29... axb3 {[%clk 0:01:16.2]} 30. cxb3 {[%clk
0:03:32.1]} 30... g5 {[%clk 0:01:09.3]} 31. Re7+ {[%clk 0:03:29.7]} 31... Kc6
{[%clk 0:01:01.9]} 32. Rxa7 {[%clk 0:03:28.2]} 32... h5 {[%clk 0:00:30.7]} 33.
d7 {[%clk 0:03:23.7]} 33... g4 {[%clk 0:00:27.1]} 34. d8=Q {[%clk 0:03:22.4]}
34... gxf3 {[%clk 0:00:21.5]} 35. Rc7+ {[%clk 0:03:21.2]} 35... Kb5 {[%clk
0:00:19.4]} 36. Qb8+ {[%clk 0:03:20.1]} 36... Ka6 {[%clk 0:00:18.1]} 37. Ra7#
{[%clk 0:03:18.9]} 1-0

[Event "Live Chess"]
[Site "Chess.com"]
[Date "2023.05.20"]
[Round "-"]
[White "AlanPaling"]
[Black "JackRudd"]
[Result "0-1"]
[WhiteElo "1188"]
[BlackElo "2392"]
[TimeControl "300"]
[EndTime "10:00:35 PDT"]
[Termination "JackRudd won by checkmate"]

1. c4 {[%clk 0:04:58.1]} 1... Nf6 {[%clk 0:04:58]} 2. Nc3 {[%clk 0:04:56.5]}
2... g6 {[%clk 0:04:56.4]} 3. g3 {[%clk 0:04:54.5]} 3... Bg7 {[%clk 0:04:55.6]}
4. Bg2 {[%clk 0:04:53.7]} 4... O-O {[%clk 0:04:54.9]} 5. e4 {[%clk 0:04:52.6]}
5... d6 {[%clk 0:04:52.9]} 6. Nge2 {[%clk 0:04:51.4]} 6... Nc6 {[%clk
0:04:51.1]} 7. O-O {[%clk 0:04:49.7]} 7... e5 {[%clk 0:04:46.8]} 8. d3 {[%clk
0:04:48.5]} 8... Be6 {[%clk 0:04:42]} 9. h3 {[%clk 0:04:47.2]} 9... Qd7 {[%clk
0:04:35.7]} 10. Kh2 {[%clk 0:04:46.1]} 10... Ne8 {[%clk 0:04:34.8]} 11. f4
{[%clk 0:04:43.3]} 11... f5 {[%clk 0:04:33.8]} 12. b3 {[%clk 0:04:38.5]} 12...
Nf6 {[%clk 0:04:30.3]} 13. Be3 {[%clk 0:04:30.7]} 13... a6 {[%clk 0:04:21.5]}
14. Rc1 {[%clk 0:04:24.2]} 14... b5 {[%clk 0:04:18.6]} 15. Nd5 {[%clk 0:04:21]}
15... bxc4 {[%clk 0:04:16]} 16. bxc4 {[%clk 0:04:17.3]} 16... fxe4 {[%clk
0:04:13.7]} 17. dxe4 {[%clk 0:04:14.7]} 17... Rab8 {[%clk 0:04:11.2]} 18. g4
{[%clk 0:04:02.3]} 18... Bxg4 {[%clk 0:04:02]} 19. f5 {[%clk 0:03:59.8]} 19...
Bxe2 {[%clk 0:03:58.7]} 20. Qxe2 {[%clk 0:03:57.2]} 20... Nd4 {[%clk 0:03:57.8]}
21. Bxd4 {[%clk 0:03:54.8]} 21... exd4 {[%clk 0:03:57.1]} 22. Qd3 {[%clk
0:03:53.2]} 22... c6 {[%clk 0:03:55.3]} 23. Nf4 {[%clk 0:03:49.9]} 23... c5
{[%clk 0:03:51.6]} 24. Ne6 {[%clk 0:03:48.5]} 24... Rf7 {[%clk 0:03:48.7]} 25.
Rb1 {[%clk 0:03:43.9]} 25... Re8 {[%clk 0:03:44.1]} 26. Rb3 {[%clk 0:03:37.5]}
26... Nh5 {[%clk 0:03:38]} 27. Rfb1 {[%clk 0:03:27.1]} 27... Be5+ {[%clk
0:03:36.4]} 28. Kg1 {[%clk 0:03:23.2]} 28... Nf4 {[%clk 0:03:34.4]} 29. Nxf4
{[%clk 0:03:18.8]} 29... Bxf4 {[%clk 0:03:33.5]} 30. Rb8 {[%clk 0:03:13.1]}
30... Rxb8 {[%clk 0:03:31.3]} 31. Rxb8+ {[%clk 0:03:12]} 31... Kg7 {[%clk
0:03:30.7]} 32. a4 {[%clk 0:03:07.3]} 32... Qxa4 {[%clk 0:03:28]} 33. Rb6 {[%clk
0:02:54]} 33... Qa1+ {[%clk 0:03:24.2]} 34. Bf1 {[%clk 0:02:52.6]} 34... Qe1
{[%clk 0:03:20.4]} 35. Qe2 {[%clk 0:02:46.4]} 35... Qg3+ {[%clk 0:03:17.5]} 36.
Qg2 {[%clk 0:02:40.1]} 36... Qe3+ {[%clk 0:03:12.2]} 37. Qf2 {[%clk 0:02:37.7]}
37... Qxe4 {[%clk 0:03:08.7]} 38. Qb2 {[%clk 0:02:25.5]} 38... Be3+ {[%clk
0:03:06.3]} 39. Kh2 {[%clk 0:02:23.2]} 39... Qxf5 {[%clk 0:03:03.9]} 40. Bg2
{[%clk 0:02:20.5]} 40... Qe5+ {[%clk 0:03:01]} 41. Kh1 {[%clk 0:02:18.2]} 41...
Qg3 {[%clk 0:02:55.1]} 42. Qe2 {[%clk 0:02:13.6]} 42... Rf2 {[%clk 0:02:52.1]}
43. Qe1 {[%clk 0:02:09.9]} 43... Qxg2# {[%clk 0:02:50.7]} 0-1

[Event "Live Chess"]
[Site "Chess.com"]
[Date "2023.05.20"]
[Round "-"]
[White "Fazer180"]
[Black "mach247"]
[Result "0-1"]
[WhiteElo "1702"]
[BlackElo "1345"]
[TimeControl "300"]
[EndTime "10:00:46 PDT"]
[Termination "mach247 won by resignation"]

1. e4 {[%clk 0:04:58.5]} 1... d5 {[%clk 0:04:59.2]} 2. exd5 {[%clk 0:04:57.2]}
2... Qxd5 {[%clk 0:04:59.1]} 3. Nc3 {[%clk 0:04:56.4]} 3... Qd8 {[%clk
0:04:58.5]} 4. d4 {[%clk 0:04:55.8]} 4... Nf6 {[%clk 0:04:57.7]} 5. h3 {[%clk
0:04:53.1]} 5... Bf5 {[%clk 0:04:49.5]} 6. Nf3 {[%clk 0:04:50.1]} 6... h6 {[%clk
0:04:48]} 7. Bc4 {[%clk 0:04:39.7]} 7... e6 {[%clk 0:04:47.1]} 8. O-O {[%clk
0:04:34]} 8... c6 {[%clk 0:04:34.2]} 9. Bf4 {[%clk 0:04:28.2]} 9... Bd6 {[%clk
0:04:32.1]} 10. Ne5 {[%clk 0:04:21.1]} 10... O-O {[%clk 0:04:25.9]} 11. Bd3
{[%clk 0:04:03.2]} 11... Bxd3 {[%clk 0:04:22.8]} 12. Qxd3 {[%clk 0:04:03.1]}
12... Nd5 {[%clk 0:04:22.4]} 13. Nxd5 {[%clk 0:03:47.9]} 13... exd5 {[%clk
0:04:21.7]} 14. Qg3 {[%clk 0:03:23.9]} 14... Qf6 {[%clk 0:04:09.7]} 15. Nd3
{[%clk 0:02:50.5]} 15... Bxf4 {[%clk 0:04:07.7]} 16. Qxf4 {[%clk 0:02:48.2]}
16... Qxf4 {[%clk 0:04:03]} 17. Nxf4 {[%clk 0:02:48.1]} 17... Nd7 {[%clk
0:04:02.5]} 18. Rfe1 {[%clk 0:02:46.6]} 18... Rfe8 {[%clk 0:04:01.8]} 19. Nd3
{[%clk 0:02:40.4]} 19... b6 {[%clk 0:03:54.2]} 20. Ne5 {[%clk 0:02:28.5]} 20...
Nxe5 {[%clk 0:03:53.4]} 21. Rxe5 {[%clk 0:02:23.2]} 21... Rxe5 {[%clk
0:03:52.6]} 22. dxe5 {[%clk 0:02:22.7]} 22... Re8 {[%clk 0:03:52.3]} 23. Re1
{[%clk 0:02:21.9]} 23... f6 {[%clk 0:03:51.8]} 24. f4 {[%clk 0:02:18.9]} 24...
fxe5 {[%clk 0:03:49.7]} 25. fxe5 {[%clk 0:02:13]} 25... Kf7 {[%clk 0:03:49.1]}
26. Kf2 {[%clk 0:02:10.4]} 26... Ke6 {[%clk 0:03:48.1]} 27. Ke3 {[%clk
0:02:04.5]} 27... Rf8 {[%clk 0:03:47.5]} 28. Kd3 {[%clk 0:01:47.9]} 28... Rf5
{[%clk 0:03:46]} 29. Re3 {[%clk 0:01:42.9]} 29... Rxe5 {[%clk 0:03:44.6]} 30.
Rg3 {[%clk 0:01:42.5]} 30... g5 {[%clk 0:03:43.9]} 31. h4 {[%clk 0:01:40]} 31...
c5 {[%clk 0:03:31.3]} 32. hxg5 {[%clk 0:01:37.4]} 32... Rxg5 {[%clk 0:03:28.1]}
33. Rh3 {[%clk 0:01:33.4]} 33... h5 {[%clk 0:03:22.8]} 34. Re3+ {[%clk
0:01:29.6]} 34... Kd6 {[%clk 0:03:17.6]} 35. g3 {[%clk 0:01:27]} 35... b5 {[%clk
0:03:05.4]} 36. Ke2 {[%clk 0:01:20.4]} 36... a5 {[%clk 0:03:02.2]} 37. Kf2
{[%clk 0:01:17.2]} 37... d4 {[%clk 0:02:57.9]} 38. Re8 {[%clk 0:01:15.3]} 38...
Rf5+ {[%clk 0:02:55.2]} 39. Kg2 {[%clk 0:01:11.6]} 39... Kd5 {[%clk 0:02:49.1]}
40. Ra8 {[%clk 0:01:08.9]} 40... a4 {[%clk 0:02:47.6]} 41. Rb8 {[%clk
0:01:04.3]} 41... Kc4 {[%clk 0:02:43.5]} 42. b3+ {[%clk 0:01:01.9]} 42... axb3
{[%clk 0:02:43]} 43. cxb3+ {[%clk 0:01:00.8]} 43... Kb4 {[%clk 0:02:41.9]} 44.
Kh3 {[%clk 0:00:53.1]} 44... Re5 {[%clk 0:02:38.7]} 45. Ra8 {[%clk 0:00:44.1]}
45... Rd5 {[%clk 0:02:34]} 46. a4 {[%clk 0:00:42.6]} 46... bxa4 {[%clk
0:02:31.9]} 47. bxa4 {[%clk 0:00:41.8]} 47... d3 {[%clk 0:02:31.4]} 48. Rb8+
{[%clk 0:00:39.2]} 48... Kxa4 {[%clk 0:02:29.3]} 49. Rb2 {[%clk 0:00:38.3]}
49... d2 {[%clk 0:02:28.5]} 0-1

[Event "Live Chess"]
[Site "Chess.com"]
[Date "2023.05.20"]
[Round "-"]
[White "toog"]
[Black "risinghelios"]
[Result "1-0"]
[WhiteElo "2629"]
[BlackElo "1954"]
[TimeControl "300"]
[EndTime "10:00:47 PDT"]
[Termination "toog won by checkmate"]

1. e4 {[%clk 0:04:58.8]} 1... c5 {[%clk 0:04:59.1]} 2. Nf3 {[%clk 0:04:57.3]}
2... Nc6 {[%clk 0:04:58.7]} 3. d4 {[%clk 0:04:55.2]} 3... cxd4 {[%clk
0:04:58.6]} 4. Nxd4 {[%clk 0:04:54.9]} 4... g6 {[%clk 0:04:57.5]} 5. c4 {[%clk
0:04:53.6]} 5... Bg7 {[%clk 0:04:56.9]} 6. Be3 {[%clk 0:04:53]} 6... e6 {[%clk
0:04:55.5]} 7. Nc3 {[%clk 0:04:50.7]} 7... Nge7 {[%clk 0:04:55.2]} 8. Ndb5
{[%clk 0:04:42.3]} 8... O-O {[%clk 0:04:54.5]} 9. Be2 {[%clk 0:04:38]} 9... a6
{[%clk 0:04:52.8]} 10. Nd6 {[%clk 0:04:36.6]} 10... Qa5 {[%clk 0:04:52.3]} 11.
O-O {[%clk 0:04:34.9]} 11... Bxc3 {[%clk 0:04:49.9]} 12. bxc3 {[%clk 0:04:34.8]}
12... Qxc3 {[%clk 0:04:49.8]} 13. Rc1 {[%clk 0:04:32.7]} 13... Qg7 {[%clk
0:04:48.9]} 14. c5 {[%clk 0:04:30.6]} 14... f5 {[%clk 0:04:42.2]} 15. Qd2 {[%clk
0:04:28.7]} 15... Qf6 {[%clk 0:04:35.2]} 16. Bg5 {[%clk 0:04:25.9]} 16... Qg7
{[%clk 0:04:28.2]} 17. Bh6 {[%clk 0:04:20.7]} 17... Qf6 {[%clk 0:04:27.3]} 18.
Bxf8 {[%clk 0:04:20]} 18... Qxf8 {[%clk 0:04:27.2]} 19. Bc4 {[%clk 0:04:16.1]}
19... fxe4 {[%clk 0:04:24]} 20. Rfe1 {[%clk 0:04:15.5]} 20... Nf5 {[%clk
0:04:23.2]} 21. Rxe4 {[%clk 0:04:13.7]} 21... Nxd6 {[%clk 0:04:21.5]} 22. Qxd6
{[%clk 0:04:13.6]} 22... Qxd6 {[%clk 0:04:19.6]} 23. cxd6 {[%clk 0:04:13.5]}
23... b5 {[%clk 0:04:19.1]} 24. Bxe6+ {[%clk 0:04:10.8]} 24... dxe6 {[%clk
0:04:17.5]} 25. Rxc6 {[%clk 0:03:35]} 25... Bb7 {[%clk 0:04:16.7]} 26. Rc7
{[%clk 0:03:34.6]} 26... Bxe4 {[%clk 0:04:13.8]} 27. d7 {[%clk 0:03:33.5]} 27...
Kf8 {[%clk 0:03:41.1]} 28. Rc8+ {[%clk 0:03:32]} 28... Ke7 {[%clk 0:03:38.9]}
29. d8=Q+ {[%clk 0:03:30.5]} 29... Kf7 {[%clk 0:03:31]} 30. Qf8# {[%clk
0:03:30.4]} 1-0